bitfinex/quotes_BTCUSD_20240815
["timestamp","ask_amount","ask_price","bid_price","bid_amount"]
[1723699876296,0.374551,58569.0,58568.0,0.1423]
[1723699877127,0.135517,58569.0,58568.0,0.1423]
[1723699878412,0.130517,58569.0,58568.0,0.1423]
[1723699879011,0.369551,58569.0,58568.0,0.1423]
[1723699882259,0.016,58569.0,58568.0,0.1423]
[1723699884458,0.016,58569.0,58568.0,0.500857]
[1723699884840,0.016,58569.0,58568.0,0.739895]
[1723699885044,0.016,58569.0,58568.0,0.500857]
[1723699885245,0.016,58569.0,58568.0,0.51127989]
[1723699885871,0.00888673,58569.0,58568.0,0.51127989]
[1723699886284,0.01088673,58569.0,58568.0,0.51127989]
[1723699886955,0.01088673,58569.0,58568.0,0.92187243]
[1723699887136,0.002,58569.0,58568.0,1.02187243]
[1723699887324,0.006,58569.0,58568.0,1.02187243]
[1723699887654,0.002,58569.0,58568.0,1.02269543]
[1723699887770,0.0009053,58571.0,58570.0,0.597575]
[1723699887975,0.0009053,58571.0,58570.0,0.836975]
[1723699890131,0.0019053,58571.0,58570.0,0.838975]
[1723699890557,0.0029053,58571.0,58570.0,0.840975]
[1723699893235,0.0029053,58571.0,58570.0,1.080005]
[1723699894316,0.0029053,58571.0,58570.0,1.25155954]
[1723699894519,0.0029053,58571.0,58570.0,1.27455954]
[1723699895349,0.0029053,58571.0,58570.0,1.51358954]
[1723699897094,0.0029053,58571.0,58570.0,1.27455954]
[1723699898225,0.0029053,58571.0,58570.0,0.601945]
[1723699898409,0.0029053,58571.0,58570.0,0.0664]
[1723699898817,0.3614443,58571.0,58570.0,0.004]
[1723699899004,0.3604443,58571.0,58570.0,0.002]
[1723699899377,0.3604443,58571.0,58570.0,0.004]
[1723699899378,0.3614443,58571.0,58570.0,0.004]
[1723699899703,0.0029053,58571.0,58570.0,0.004]
[1723699899837,0.0019053,58571.0,58570.0,0.002]
[1723699900039,0.0019053,58571.0,58570.0,0.438245]
[1723699900288,0.0009053,58571.0,58570.0,0.263015]
[1723699900488,0.0009053,58571.0,58570.0,0.265015]
[1723699901006,0.0009053,58571.0,58570.0,0.263015]
[1723699901304,0.0009053,58571.0,58570.0,0.265015]
[1723699902540,0.0009053,58571.0,58570.0,0.1455]
[1723699902745,0.0009053,58571.0,58570.0,0.265015]
[1723699905226,0.0009053,58571.0,58570.0,0.1455]
[1723699905398,0.1204183,58571.0,58570.0,0.004]
[1723699905803,0.0009053,58571.0,58570.0,0.004]
[1723699907151,0.0009053,58571.0,58570.0,0.123515]
[1723699907374,0.0009053,58571.0,58570.0,0.745175]
[1723699907778,0.0009053,58571.0,58570.0,1.15575954]
[1723699908418,0.0009053,58571.0,58570.0,1.16602515]
[1723699917035,0.0009053,58571.0,58570.0,0.51641061]
[1723699917667,0.0009053,58571.0,58570.0,0.75544061]
[1723699918090,0.0009053,58571.0,58570.0,0.85544061]
[1723699920242,0.0009053,58571.0,58570.0,0.61641061]
[1723699920662,0.0009053,58571.0,58570.0,0.85544061]
[1723699920864,0.0006998,58571.0,58570.0,0.85544061]
[1723699922354,0.0006998,58571.0,58570.0,1.28902515]
[1723699922578,0.0006998,58571.0,58570.0,1.04999515]
[1723699922779,0.0006998,58571.0,58570.0,1.28902515]
[1723699923096,0.0006998,58571.0,58570.0,1.04799515]
[1723699923291,0.0006998,58571.0,58570.0,1.04599515]
[1723699923501,0.0016998,58571.0,58570.0,1.28702515]
[1723699923709,0.0016998,58571.0,58570.0,1.29202515]
[1723699923710,0.0026998,58571.0,58570.0,1.29202515]
[1723699924577,0.0026998,58571.0,58570.0,1.53105515]
[1723699924782,1.44748033,58587.0,58586.0,0.119482]
[1723699924783,1.34524598,58587.0,58586.0,0.119482]
[1723699924927,1.34524598,58587.0,58578.0,0.2337]
[1723699924928,0.0860453,58587.0,58582.0,0.238979]
[1723699925133,0.0860453,58587.0,58581.0,0.238985]
[1723699925134,0.21716247,58587.0,58581.0,0.238985]
[1723699925432,0.21716247,58587.0,58580.0,0.0661]
[1723699925433,0.0860453,58587.0,58586.0,0.119482]
[1723699925648,0.13716247,58587.0,58586.0,0.119482]
[1723699926149,0.0860453,58587.0,58586.0,0.119482]
[1723699926352,0.13716247,58587.0,58586.0,0.358446]
[1723699926562,0.0860453,58587.0,58586.0,0.119482]
[1723699926764,0.0920453,58587.0,58586.0,0.119482]
[1723699926973,0.0960453,58587.0,58586.0,0.119482]
[1723699927178,0.0960453,58587.0,58586.0,0.358446]
[1723699927377,0.0900453,58587.0,58586.0,0.66131]
[1723699928268,0.0960453,58587.0,58586.0,0.66231]
[1723699928880,1.35524598,58587.0,58586.0,0.66231]
[1723699929232,1.35524598,58587.0,58586.0,0.67259338]
[1723699929712,0.0960453,58587.0,58586.0,1.16151192]
[1723699929960,0.0960453,58587.0,58586.0,1.28451192]
[1723699930640,0.0920453,58587.0,58586.0,1.28451192]
[1723699930799,0.0860453,58587.0,58586.0,1.28351192]
[1723699931233,0.0870453,58587.0,58586.0,1.29051192]
[1723699931430,0.0860453,58587.0,58586.0,1.28351192]
[1723699932841,0.0880453,58587.0,58586.0,1.30051192]
[1723699933094,0.0870453,58587.0,58586.0,1.29251192]
[1723699933446,0.0870453,58587.0,58586.0,1.29551192]
[1723699933646,0.0880453,58587.0,58586.0,1.29351192]
[1723699934212,0.0870453,58587.0,58586.0,1.28351192]
[1723699934428,0.0009053,58605.0,58602.0,0.0616]
[1723699934612,0.0009053,58605.0,58604.0,1.206918]
[1723699934742,0.0009053,58605.0,58604.0,1.40147254]
[1723699934965,0.0009053,58605.0,58604.0,1.50147254]
[1723699935399,0.0009053,58605.0,58604.0,1.306918]
[1723699936015,0.0009053,58605.0,58604.0,1.31685719]
[1723699936215,0.0009053,58605.0,58604.0,0.84426619]
[1723699936863,0.0009053,58605.0,58604.0,1.08815719]
[1723699937132,0.0009053,58605.0,58604.0,0.84926619]
[1723699937386,0.0009053,58605.0,58604.0,1.26571173]
[1723699937663,0.0009053,58605.0,58604.0,1.28371173]
[1723699937909,0.0009053,58605.0,58604.0,1.27771173]
[1723699938132,0.0009053,58605.0,58604.0,1.33179621]
[1723699938613,0.0009053,58605.0,58604.0,1.57068721]
[1723699939102,0.0009053,58605.0,58604.0,1.57268721]
[1723699939804,0.0009053,58605.0,58604.0,1.57568721]
[1723699940032,0.0009053,58605.0,58604.0,1.57768721]
[1723699940262,0.0009053,58605.0,58604.0,1.58668721]
[1723699940463,0.0009053,58605.0,58604.0,1.57668721]
[1723699940677,0.0009053,58605.0,58604.0,1.56568721]
[1723699940860,0.0009053,58605.0,58604.0,1.57968721]
[1723699941084,0.0009053,58605.0,58604.0,1.59368721]
[1723699942465,0.0009053,58605.0,58604.0,1.54660273]
[1723699942735,0.0009053,58605.0,58604.0,1.59568721]
[1723699942880,0.0009053,58605.0,58604.0,1.54460273]
[1723699943090,0.0009053,58610.0,58609.0,0.002]
[1723699943322,0.0009053,58610.0,58609.0,1.33120881]
[1723699943496,0.0009053,58610.0,58609.0,1.83195081]
[1723699943729,0.0009053,58610.0,58609.0,2.43103529]
[1723699943924,0.0009053,58620.0,58619.0,0.835905]
[1723699944141,0.0009053,58620.0,58619.0,1.50515954]
[1723699946532,0.0009053,58620.0,58619.0,1.50715954]
[1723699946745,0.0009053,58620.0,58619.0,1.84598954]
[1723699946966,0.0009053,58620.0,58619.0,1.85398954]
[1723699947171,0.0009053,58620.0,58619.0,1.86398954]
[1723699947584,0.0009053,58620.0,58619.0,1.87404361]
[1723699947796,0.0009053,58620.0,58619.0,1.86404361]
[1723699948597,0.0009053,58620.0,58619.0,1.85604361]
[1723699948904,0.0009053,58620.0,58619.0,1.86804361]
[1723699949096,0.0009053,58620.0,58619.0,1.88004361]
[1723699949400,0.0009053,58620.0,58619.0,1.88909661]
[1723699950099,0.0009053,58620.0,58619.0,1.88709661]
[1723699951275,0.0009053,58620.0,58619.0,1.88909661]
[1723699951476,0.0009053,58620.0,58619.0,1.88709661]
[1723699951674,0.0009053,58620.0,58619.0,1.88909661]
[1723699951987,0.0009053,58620.0,58619.0,2.35909661]
[1723699952186,0.0009053,58620.0,58619.0,1.88709661]
[1723699952434,0.0009053,58620.0,58619.0,1.64826661]
[1723699952911,0.0009053,58620.0,58619.0,1.62426661]
[1723699953109,0.0009053,58620.0,58619.0,1.65226661]
[1723699953276,0.0009053,58620.0,58619.0,1.89109661]
[1723699953477,0.0009053,58620.0,58619.0,1.86309661]
[1723699953680,0.0009053,58620.0,58619.0,1.87509661]
[1723699954084,0.0009053,58620.0,58619.0,1.86309661]
[1723699954881,0.0009053,58620.0,58619.0,1.87509661]
[1723699955305,0.0009053,58620.0,58619.0,1.86309661]
[1723699955479,0.0009053,58620.0,58619.0,1.87209661]
[1723699955681,0.0009053,58620.0,58619.0,1.62426661]
[1723699956027,0.0009053,58620.0,58619.0,1.65126661]
[1723699956465,0.0009053,58620.0,58619.0,1.63726661]
[1723699956667,0.0009053,58620.0,58619.0,1.64926661]
[1723699956862,0.0009053,58620.0,58619.0,1.63626661]
[1723699957280,0.0009053,58620.0,58619.0,1.64726661]
[1723699957935,0.0009053,58620.0,58619.0,1.63526661]
[1723699958370,0.0009053,58620.0,58619.0,1.52626661]
[1723699958577,0.0009053,58620.0,58619.0,1.45296661]
[1723699958757,0.0009053,58620.0,58619.0,1.43896661]
[1723699959216,0.0009053,58620.0,58619.0,1.45296661]
[1723699959423,0.0009053,58620.0,58619.0,1.46596661]
[1723699959632,0.0009053,58620.0,58619.0,1.46196661]
[1723699960031,0.0009053,58620.0,58619.0,1.48596661]
[1723699960434,0.0009053,58620.0,58619.0,1.47396661]
[1723699961193,0.0009053,58620.0,58619.0,1.46196661]
[1723699961397,0.0009053,58620.0,58619.0,1.38326661]
[1723699961755,0.1444053,58620.0,58619.0,0.019]
[1723699961947,0.1444053,58620.0,58619.0,0.129415]
[1723699962132,0.1444053,58620.0,58619.0,0.358245]
[1723699962358,0.1444053,58620.0,58619.0,0.386245]
[1723699962545,0.1444053,58620.0,58619.0,0.625075]
[1723699962700,0.1444053,58620.0,58619.0,0.611075]
[1723699962904,0.1444053,58620.0,58619.0,0.606075]
[1723699963101,0.1444053,58620.0,58619.0,0.616075]
[1723699963302,0.1444053,58620.0,58619.0,0.607075]
[1723699963725,0.1444053,58620.0,58619.0,0.707075]
[1723699964391,0.1444053,58620.0,58619.0,0.697075]
[1723699964799,0.1444053,58620.0,58619.0,0.698075]
[1723699964999,0.1444053,58620.0,58619.0,0.459245]
[1723699965220,0.1444053,58620.0,58619.0,0.458245]
[1723699965657,0.1444053,58620.0,58619.0,0.461245]
[1723699965875,0.1444053,58620.0,58619.0,0.463245]
[1723699966120,0.1444053,58620.0,58619.0,0.460245]
[1723699966269,0.1444053,58620.0,58619.0,0.1]
[1723699966475,0.1444053,58620.0,58619.0,0.120415]
[1723699966647,0.1444053,58620.0,58619.0,0.220415]
[1723699968086,0.1444053,58620.0,58619.0,0.459245]
[1723699968293,0.0009053,58620.0,58619.0,0.698075]
[1723699968880,0.0009053,58620.0,58619.0,0.697075]
[1723699969309,0.0009053,58620.0,58619.0,0.698075]
[1723699969713,0.0009053,58620.0,58619.0,0.697075]
[1723699970116,0.0009053,58620.0,58619.0,0.702075]
[1723699973036,0.0009053,58620.0,58619.0,0.935775]
[1723699973413,0.0009053,58620.0,58619.0,1.174605]
[1723699974021,0.0009053,58620.0,58619.0,1.171605]
[1723699974402,0.0009053,58620.0,58619.0,1.42015954]
[1723699974606,0.0009053,58620.0,58619.0,1.50615954]
[1723699975036,0.0009053,58620.0,58619.0,1.51315954]
[1723699975241,0.0009053,58620.0,58619.0,1.50615954]
[1723699975468,0.0009053,58620.0,58619.0,1.50915954]
[1723699975674,0.0009053,58620.0,58619.0,1.51715954]
[1723699975875,0.0009053,58620.0,58619.0,1.51415954]
[1723699976291,0.05124192,58634.0,58633.0,0.119386]
[1723699976723,0.05124192,58634.0,58633.0,0.358159]
[1723699977380,0.119372,58641.0,58637.0,0.119377]
[1723699977593,1.25920068,58643.0,58628.0,0.303793]
[1723699977803,0.08577727,58642.0,58632.0,0.119388]
[1723699978048,0.08577727,58642.0,58631.0,0.238777]
[1723699978049,0.119378,58637.0,58633.0,0.120386]
[1723699978252,0.119378,58637.0,58633.0,0.119386]
[1723699978460,0.119378,58637.0,58631.0,0.238777]
[1723699978461,0.119379,58637.0,58631.0,0.238777]
[1723699978669,0.119379,58637.0,58633.0,0.119385]
[1723699978872,0.238749,58639.0,58634.0,0.119384]
[1723699979075,0.119378,58638.0,58634.0,0.119384]
[1723699979497,0.1438,58637.0,58634.0,0.119384]
[1723699979727,0.1438,58637.0,58632.0,0.119387]
[1723699979959,0.263178,58637.0,58632.0,0.119387]
[1723699980585,0.081,58635.0,58629.0,0.119394]
[1723699980905,0.1438,58629.0,58625.0,0.1]
[1723699981110,0.119406,58624.0,58619.0,0.119414]
[1723699981384,0.05101946,58629.0,58621.0,0.65666362]
[1723699981586,1.25920068,58630.0,58629.0,0.358183]
[1723699981792,1.25920068,58630.0,58629.0,0.596972]
[1723699981968,1.25920068,58630.0,58629.0,0.119394]
[1723699982171,1.25920068,58630.0,58629.0,0.358183]
[1723699982373,1.25920068,58630.0,58629.0,0.119394]
[1723699982544,1.25920068,58630.0,58629.0,0.358183]
[1723699982924,1.25920068,58630.0,58629.0,0.359183]
[1723699984439,1.25920068,58630.0,58629.0,0.358183]
[1723699985143,1.25920068,58630.0,58629.0,0.596972]
[1723699985333,0.13292476,58636.0,58635.0,0.119382]
[1723699985455,0.13299506,58636.0,58635.0,0.119382]
[1723699985654,0.13299506,58636.0,58634.0,0.119382]
[1723699986467,0.05108976,58635.0,58634.0,0.119382]
[1723699986691,0.05108976,58635.0,58632.0,0.119387]
[1723699986898,0.05108976,58635.0,58629.0,0.238789]
[1723699987102,0.05108976,58635.0,58630.0,0.119392]
[1723699987103,0.05108976,58632.0,58630.0,0.119392]
[1723699987322,0.05108976,58631.0,58630.0,0.119392]
[1723699987535,0.05110518,58631.0,58629.0,0.119394]
[1723699988345,0.05110518,58631.0,58625.0,0.01036494]
[1723699988550,0.1427,58629.0,58623.0,0.119405]
[1723699988808,0.1427,58629.0,58620.0,0.219412]
[1723699988809,0.0801,58625.0,58620.0,0.219412]
[1723699989021,0.23881,58624.0,58620.0,0.1]
[1723699989227,0.119408,58623.0,58620.0,0.1]
[1723699989657,0.119408,58623.0,58619.0,0.219414]
[1723699990071,0.119408,58623.0,58620.0,0.002]
[1723699990459,0.13120518,58625.0,58620.0,0.121412]
[1723699990661,0.25060818,58625.0,58621.0,0.219411]
[1723699991560,0.05110518,58625.0,58622.0,0.0619]
[1723699991777,0.05110837,58629.0,58624.0,0.0792]
[1723699992028,0.05110837,58629.0,58627.0,0.119398]
[1723699992246,0.05110837,58628.0,58623.0,0.238812]
[1723699992468,0.05110837,58627.0,58625.0,0.119402]
[1723699992694,0.05110837,58628.0,58626.0,0.119399]
[1723699992903,0.05110837,58629.0,58626.0,0.119399]
[1723699993133,0.05110837,58629.0,58627.0,0.119397]
[1723699993401,0.05110837,58629.0,58628.0,0.119396]
[1723699994249,0.05110837,58629.0,58628.0,0.358189]
[1723699995072,0.05110837,58630.0,58629.0,0.119394]
[1723699995521,0.05110837,58630.0,58627.0,0.000823]
[1723699995522,0.07666256,58630.0,58627.0,0.000823]
[1723699995750,0.05111131,58629.0,58628.0,0.119396]
[1723699996108,0.05211131,58629.0,58628.0,0.119396]
[1723699996528,0.05211131,58629.0,58628.0,0.358189]
[1723699996736,0.10221674,58632.0,58629.0,0.119392]
[1723699996737,0.05111131,58632.0,58629.0,0.119392]
[1723699996919,0.05111131,58631.0,58629.0,0.119392]
[1723699997335,0.05111131,58632.0,58630.0,0.119392]
[1723699997535,0.0511123,58632.0,58629.0,0.119393]
[1723699998069,0.0511123,58630.0,58629.0,0.119393]
[1723699998268,0.0791,58629.0,58627.0,0.120221]
[1723699998492,0.0791,58629.0,58628.0,0.001]
[1723699998717,0.36561074,58629.0,58628.0,0.001]
[1723699998926,0.119396,58628.0,58627.0,0.000823]
[1723699999131,0.44803262,58628.0,58627.0,0.000823]
[1723699999993,0.32863662,58628.0,58627.0,0.000823]
[1723700000217,0.07667746,58629.0,58627.0,0.18402]
[1723700000370,0.05111924,58628.0,58627.0,0.064623]
[1723700000572,0.05111924,58628.0,58627.0,0.184021]
[1723700000775,0.07667883,58630.0,58628.0,0.119395]
[1723700001384,0.0511197,58630.0,58628.0,0.119395]
[1723700002268,0.0511197,58630.0,58629.0,0.119394]
[1723700002476,0.05112111,58630.0,58628.0,0.119395]
[1723700002675,0.05112111,58629.0,58628.0,0.119395]
[1723700002874,0.08067883,58630.0,58628.0,0.119395]
[1723700003073,0.08067883,58630.0,58629.0,0.119394]
[1723700003307,0.07667883,58630.0,58629.0,0.119394]
[1723700003737,0.07667883,58630.0,58629.0,0.358183]
[1723700003886,0.07667883,58630.0,58629.0,0.119394]
[1723700004092,0.10223844,58631.0,58628.0,0.119396]
[1723700004305,0.07669175,58629.0,58628.0,0.119396]
[1723700004727,0.07669175,58629.0,58627.0,0.23962]
[1723700004728,0.0764,58628.0,58627.0,0.000823]
[1723700004931,0.07669175,58629.0,58627.0,0.120221]
[1723700005107,0.05112984,58628.0,58627.0,0.120221]
[1723700005327,0.05112984,58628.0,58627.0,0.000823]
[1723700005528,0.07669175,58628.0,58627.0,0.12022]
[1723700005927,0.07669175,58629.0,58627.0,0.12022]
[1723700006128,0.07669175,58629.0,58628.0,0.119396]
[1723700006528,0.10223844,58630.0,58628.0,0.119396]
[1723700007075,0.10223844,58630.0,58627.0,0.002823]
[1723700007187,0.07670488,58628.0,58627.0,0.122221]
[1723700007806,0.07670488,58628.0,58627.0,0.002823]
[1723700008024,0.25800567,58628.0,58627.0,0.002823]
[1723700008236,0.420089,58628.0,58627.0,0.000823]
[1723700008476,0.497689,58628.0,58627.0,0.000823]
[1723700008943,0.92859681,58628.0,58627.0,0.000823]
[1723700009615,0.92859681,58628.0,58627.0,0.001823]
[1723700009856,0.92827472,58628.0,58627.0,0.001823]
[1723700010774,0.92806945,58628.0,58627.0,0.001823]
[1723700011694,0.62758172,58628.0,58627.0,0.001823]
[1723700011892,0.43058572,58628.0,58627.0,0.001823]
[1723700012111,0.10228504,58628.0,58627.0,0.001823]
[1723700012322,0.07671486,58628.0,58627.0,0.001823]
[1723700012741,0.4314713,58629.0,58627.0,0.001823]
[1723700012916,0.10228504,58629.0,58627.0,0.001823]
[1723700013120,0.43097002,58629.0,58627.0,0.001823]
[1723700013920,0.43097002,58629.0,58627.0,0.121221]
[1723700014325,0.43097002,58629.0,58627.0,0.001823]
[1723700014533,0.10228504,58628.0,58627.0,0.000823]
[1723700014745,0.43097002,58628.0,58627.0,0.000823]
[1723700015777,0.32868498,58628.0,58627.0,0.000823]
[1723700015985,0.32968498,58628.0,58627.0,0.000823]
[1723700016601,0.68787398,58628.0,58627.0,0.000823]
[1723700016708,0.76437398,58628.0,58627.0,0.000823]
[1723700017562,1.00316698,58628.0,58627.0,0.000823]
[1723700017763,1.06866698,58628.0,58627.0,0.000823]
[1723700017934,1.19652328,58628.0,58627.0,0.000823]
[1723700018337,1.06866698,58628.0,58627.0,0.000823]
[1723700018857,1.0654125,58628.0,58627.0,0.000823]
[1723700019061,1.06520929,58628.0,58627.0,0.000823]
[1723700021075,1.06611459,58628.0,58627.0,0.000823]
[1723700022858,1.23766913,58628.0,58627.0,0.000823]
[1723700023095,3.15279632,58628.0,58627.0,1e-08]
[1723700023275,0.500094,58611.0,58603.0,0.067223]
[1723700023534,0.91051154,58611.0,58603.0,0.000823]
[1723700023732,1.47460183,58611.0,58603.0,0.000823]
[1723700023884,1.54425853,58611.0,58603.0,0.000823]
[1723700024286,1.47460183,58611.0,58603.0,0.000823]
[1723700024440,1.95071561,58611.0,58603.0,0.000823]
[1723700025051,1.47460183,58611.0,58603.0,0.000823]
[1723700025256,1.00298429,58611.0,58606.0,0.0605]
[1723700025458,1.00298429,58611.0,58610.0,0.001823]
[1723700025667,1.1406375,58611.0,58610.0,0.001823]
[1723700026074,1.1150655,58611.0,58610.0,0.001823]
[1723700026271,1.1050655,58611.0,58610.0,0.000823]
[1723700026475,1.1150655,58611.0,58610.0,0.001823]
[1723700027109,1.01898429,58611.0,58610.0,0.002823]
[1723700027324,1.01298429,58611.0,58610.0,0.001823]
[1723700027727,0.93838429,58611.0,58610.0,0.002823]
[1723700027935,0.68368887,58611.0,58610.0,0.001823]
[1723700028137,0.64816439,58611.0,58610.0,0.000823]
[1723700028342,0.42630139,58611.0,58610.0,0.002823]
[1723700028540,0.375294,58611.0,58610.0,0.002823]
[1723700029008,0.603157,58611.0,58610.0,0.001823]
[1723700029227,0.614157,58611.0,58610.0,0.002823]
[1723700030425,0.375294,58611.0,58610.0,0.002823]
[1723700031338,0.614157,58611.0,58610.0,0.002823]
[1723700031471,0.375294,58611.0,58610.0,0.002823]
[1723700032269,0.614157,58611.0,58610.0,0.002823]
[1723700033270,0.375294,58611.0,58610.0,0.002823]
[1723700033467,0.86781154,58611.0,58610.0,0.002823]
[1723700033953,1.10667454,58611.0,58610.0,0.002823]
[1723700034679,0.696257,58611.0,58610.0,0.002823]
[1723700034886,0.614157,58611.0,58610.0,0.002823]
[1723700035841,1.87335768,58611.0,58610.0,0.002823]
[1723700040632,1.87335768,58611.0,58610.0,0.084423]
[1723700041331,1.63449468,58611.0,58610.0,0.084423]
[1723700041793,0.375294,58611.0,58610.0,0.084423]
[1723700044583,0.375294,58611.0,58610.0,0.002823]
[1723700044584,0.696957,58611.0,58610.0,0.002823]
[1723700047305,1.10737454,58611.0,58610.0,0.002823]
[1723700047510,1.10737454,58611.0,58610.0,1e-08]
[1723700047511,2.68003831,58611.0,58610.0,1e-08]
[1723700047716,2.93285427,58611.0,58610.0,1e-08]
[1723700048168,3.06020186,58611.0,58610.0,1e-08]
[1723700048373,3.16020186,58611.0,58610.0,1e-08]
[1723700048593,3.39906486,58611.0,58610.0,1e-08]
[1723700048927,3.03285427,58611.0,58610.0,1e-08]
[1723700049061,3.10016273,58611.0,58610.0,1e-08]
[1723700051685,3.89016273,58611.0,58610.0,1e-08]
[1723700052544,4.01752642,58611.0,58610.0,1e-08]
[1723700053233,3.95989188,58611.0,58610.0,1e-08]
[1723700053791,4.13144642,58611.0,58610.0,1e-08]
[1723700053999,3.95989188,58611.0,58610.0,1e-08]
[1723700054989,0.836118,58604.0,58603.0,0.000823]
[1723700055155,1.08977254,58604.0,58603.0,0.000823]
[1723700055361,1.78782002,58604.0,58603.0,0.000823]
[1723700055558,3.17442204,58604.0,58603.0,0.000823]
[1723700055756,3.0470207,58604.0,58603.0,0.000823]
[1723700056280,3.0510207,58604.0,58603.0,0.000823]
[1723700057585,3.0540207,58604.0,58603.0,0.001823]
[1723700057987,3.0540207,58604.0,58603.0,0.002823]
[1723700057988,3.0590207,58604.0,58603.0,0.002823]
[1723700058943,3.23057524,58604.0,58603.0,0.002823]
[1723700059922,3.35797002,58604.0,58603.0,0.002823]
[1723700060528,3.23057524,58604.0,58603.0,0.002823]
[1723700060953,3.0590207,58604.0,58603.0,0.002823]
[1723700061352,2.9961207,58604.0,58603.0,0.002823]
[1723700062152,2.6751297,58604.0,58603.0,0.002823]
[1723700062351,1.95604832,58604.0,58603.0,0.146423]
[1723700062553,1.68051559,58604.0,58603.0,0.146423]
[1723700062751,1.62953668,58604.0,58603.0,0.146423]
[1723700064654,1.39064568,58604.0,58603.0,0.146423]
[1723700065205,1.44162459,58604.0,58603.0,0.146423]
[1723700065602,0.18242391,58604.0,58603.0,0.146423]
[1723700066229,0.131445,58604.0,58603.0,0.146423]
[1723700067158,0.20791357,58604.0,58603.0,0.146423]
[1723700067367,0.2080354,58604.0,58603.0,0.146423]
[1723700068147,0.56284829,58604.0,58603.0,0.146423]
[1723700069275,0.46072776,58604.0,58603.0,0.146423]
[1723700069449,0.46082345,58604.0,58603.0,0.146423]
[1723700069898,0.08863774,58604.0,58603.0,0.146423]
[1723700070323,0.08863591,58604.0,58603.0,0.146423]
[1723700070745,0.012,58604.0,58603.0,0.146423]
[1723700071476,0.20808091,58604.0,58603.0,0.146423]
[1723700071650,0.131445,58604.0,58603.0,0.146423]
[1723700071894,0.20808388,58604.0,58603.0,0.146423]
[1723700072883,0.131445,58604.0,58603.0,0.146423]
[1723700073237,0.20808373,58604.0,58603.0,0.146423]
[1723700073842,0.08863873,58604.0,58603.0,0.146423]
[1723700074045,0.08863873,58604.0,58603.0,0.624213]
[1723700074242,0.012,58604.0,58603.0,0.74366]
[1723700075147,0.007,58604.0,58603.0,0.74266]
[1723700075375,0.05199512,58610.0,58609.0,0.119435]
[1723700075601,0.0009053,58610.0,58609.0,0.738177]
[1723700077392,0.0109053,58610.0,58609.0,0.739177]
[1723700078218,0.0009053,58610.0,58609.0,0.977048]
[1723700078421,0.0009053,58610.0,58609.0,1.210748]
[1723700078602,0.0129053,58610.0,58609.0,1.211748]
[1723700078919,0.0009053,58610.0,58609.0,1.210748]
[1723700079264,0.0029053,58610.0,58609.0,1.210748]
[1723700079553,0.0019053,58610.0,58609.0,0.977048]
[1723700079723,0.0019053,58610.0,58609.0,0.979048]
[1723700079948,0.0019053,58610.0,58609.0,0.98919292]
[1723700080163,0.0009053,58610.0,58609.0,0.98919292]
[1723700080366,0.0009053,58610.0,58609.0,0.99319292]
[1723700083275,0.0009053,58610.0,58609.0,1.39844746]
[1723700083404,0.0009053,58610.0,58609.0,1.42144746]
[1723700083605,0.0009053,58610.0,58609.0,1.76031846]
[1723700084859,0.0009053,58610.0,58609.0,1.75831846]
[1723700085064,0.0019053,58610.0,58609.0,1.77231846]
[1723700085686,0.0019053,58610.0,58609.0,1.76831846]
[1723700086089,0.0029053,58610.0,58609.0,1.78031846]
[1723700087541,0.0029053,58610.0,58609.0,1.78714946]
[1723700090293,0.0009053,58627.0,58626.0,0.500301]
[1723700091803,0.0059053,58627.0,58626.0,0.500301]
[1723700092024,0.0059053,58627.0,58626.0,0.977903]
[1723700092221,0.0089053,58627.0,58626.0,1.24945754]
[1723700092639,0.0089053,58627.0,58626.0,1.27245754]
[1723700092889,0.0059053,58627.0,58626.0,1.27245754]
[1723700093203,0.0039053,58627.0,58626.0,1.27245754]
[1723700093358,0.0039053,58627.0,58626.0,1.28255433]
[1723700093950,0.0009053,58627.0,58626.0,1.28255433]
[1723700094328,0.0009053,58627.0,58626.0,1.52135533]
[1723700095214,0.0019053,58627.0,58626.0,1.53335533]
[1723700095447,0.0009053,58627.0,58626.0,1.52735533]
[1723700095855,0.0019053,58627.0,58626.0,1.53235533]
[1723700096299,0.0019053,58627.0,58626.0,1.54235533]
[1723700096844,0.0019053,58627.0,58626.0,1.30355433]
[1723700101906,0.0019053,58627.0,58626.0,0.87019879]
[1723700102245,0.0019053,58627.0,58626.0,0.63139779]
[1723700102442,0.0019053,58627.0,58626.0,0.15049679]
[1723700102766,0.0019053,58627.0,58626.0,0.38929779]
[1723700104317,0.0751106,58631.0,58626.0,0.03109679]
[1723700104438,0.119394,58630.0,58626.0,0.15049679]
[1723700104688,0.0751106,58631.0,58626.0,0.15049679]
[1723700104893,0.06605792,58631.0,58628.0,0.119396]
[1723700105100,0.119382,58635.0,58630.0,0.119392]
[1723700105302,0.0009053,58636.0,58627.0,0.22387727]
[1723700105503,0.001,58631.0,58630.0,0.238785]
[1723700105707,0.001,58631.0,58630.0,0.439677]
[1723700105933,0.1202873,58636.0,58630.0,0.439677]
[1723700105934,0.1202873,58636.0,58631.0,0.11939]
[1723700106107,0.1202873,58636.0,58632.0,0.119388]
[1723700106520,0.0009053,58636.0,58633.0,0.119386]
[1723700106931,0.0009053,58636.0,58633.0,0.358159]
[1723700107348,0.0009053,58636.0,58633.0,0.658532]
[1723700107578,0.0009053,58636.0,58633.0,0.737432]
[1723700108399,0.0009053,58636.0,58633.0,0.498659]
[1723700108607,0.1202903,58634.0,58632.0,0.003]
[1723700108812,0.0009053,58634.0,58631.0,0.11939]
[1723700109023,0.0009053,58634.0,58633.0,0.002]
[1723700109226,0.0009053,58634.0,58633.0,0.005]
[1723700109438,0.0009053,58634.0,58631.0,0.119389]
[1723700109852,0.0009053,58634.0,58632.0,0.119388]
[1723700109853,0.0029053,58634.0,58632.0,0.119388]
[1723700110061,0.0019053,58634.0,58632.0,0.119388]
[1723700110673,0.0019053,58634.0,58630.0,0.358175]
[1723700110893,0.0019053,58634.0,58630.0,0.238784]
[1723700111097,0.0009053,58634.0,58632.0,0.119388]
[1723700111298,0.0009053,58634.0,58633.0,0.119386]
[1723700111525,0.0009053,58634.0,58633.0,0.505659]
[1723700111526,0.0029053,58634.0,58633.0,0.505659]
[1723700111720,0.0029053,58634.0,58633.0,0.744432]
[1723700111922,0.0009053,58634.0,58633.0,0.744432]
[1723700112159,0.0019053,58634.0,58633.0,0.744432]
[1723700112529,0.0009053,58634.0,58633.0,0.744432]